fUSD/lending_fUSD_20241104
["ID","MTS","AMOUNT","RATE_DAILY","PERIOD"]
[341252834,1730726948226,-150.0,0.00045,97]
[341252835,1730726948249,-150.0,0.00045,96]
[341252836,1730726948274,-150.0,0.00045,95]
[341252837,1730726948298,-150.0,0.00045,94]
[341252838,1730726948322,-150.0,0.00045,93]
[341252839,1730726948346,-150.0,0.00045,92]
[341252840,1730726948370,-150.0,0.00045,91]
[341252841,1730726948393,-150.0,0.00045,90]
[341252842,1730726948424,-150.0,0.00045,89]
[341252843,1730726948452,-150.0,0.00045,88]
[341252844,1730726948477,-150.0,0.00045,87]
[341252845,1730726948505,-150.0,0.00045,86]
[341252846,1730726948530,-150.0,0.00045,85]
[341252847,1730726948553,-150.0,0.00045,84]
[341252848,1730726948577,-150.0,0.00045,83]
[341252849,1730726948601,-150.0,0.00045,82]
[341252850,1730726948625,-150.0,0.00045,81]
[341252851,1730726948649,-150.0,0.00045,80]
[341252852,1730726948675,-150.0,0.00045,79]
[341252853,1730726948699,-150.0,0.00045,78]
[341252854,1730726948723,-150.0,0.00045,77]
[341252855,1730726948747,-150.0,0.00045,76]
[341252856,1730726948771,-150.0,0.00045,75]
[341252857,1730726948797,-150.0,0.00045,74]
[341252858,1730726948823,-150.0,0.00045,73]
[341252859,1730726948847,-150.0,0.00045,72]
[341252860,1730726948871,-150.0,0.00045,71]
[341252861,1730726948895,-150.0,0.00045,70]
[341252862,1730726948920,-150.0,0.00045,69]
[341252863,1730726948945,-150.0,0.00045,68]
[341252864,1730726948970,-150.0,0.00045,67]
[341252865,1730726948994,-150.0,0.00045,66]
[341252866,1730726949018,-150.0,0.00045,65]
[341252867,1730726949043,-150.0,0.00045,64]
[341252868,1730726949070,-150.0,0.00045,63]
[341252869,1730726949093,-150.0,0.00045,62]
[341252870,1730726949116,-150.0,0.00045,61]
[341252871,1730726949139,-150.0,0.00045,60]
[341252872,1730726949174,-150.0,0.00045,59]
[341252873,1730726949202,-150.0,0.00045,58]
[341252874,1730726949227,-150.0,0.00045,57]
[341252875,1730726949252,-150.0,0.00045,56]
[341252876,1730726949277,-150.0,0.00045,55]
[341252877,1730726949302,-150.0,0.00045,54]
[341252878,1730726949512,-150.0,0.00045,53]
[341252879,1730726949536,-150.0,0.00045,52]
[341252880,1730726949560,-150.0,0.00045,51]
[341252881,1730726949584,-150.0,0.00045,50]
[341252882,1730726949606,-150.0,0.00045,49]
[341252883,1730726949630,-150.0,0.00045,48]
[341252884,1730726949656,-150.0,0.00045,47]
[341252885,1730726949679,-150.0,0.00045,46]
[341252886,1730726949703,-150.0,0.00045,45]
[341252887,1730726949725,-150.0,0.00045,44]
[341252888,1730726949752,-150.0,0.00045,43]
[341252889,1730726949777,-150.0,0.00045,42]
[341252890,1730726949803,-150.0,0.00045,41]
[341252891,1730726949831,-150.0,0.00045,40]
[341252892,1730726949854,-150.0,0.00045,39]
[341252893,1730726949878,-150.0,0.00045,38]
[341252894,1730726949904,-150.0,0.00045,37]
[341252895,1730726949929,-626.66310139,0.00045,120]
[341252896,1730726949953,-500.0,0.00045,120]
[341252897,1730726949977,-248.26513791,0.00045,120]
[341252898,1730726950000,-900.0,0.00045,46]
[341252899,1730726950023,-289.10434124,0.00045,120]
[341252900,1730726950048,-625.29546652,0.00045,120]
[341252901,1730726950071,-14080.09335306,0.00045,120]
[341252902,1730726950095,-3153.81,0.00045,120]
[341252903,1730726950119,-150.0,0.00045,120]
[341252904,1730726950143,-3100.0,0.00045,90]
[341252905,1730726950167,-1000.0,0.00045,120]
[341252906,1730726950193,-15000.0,0.00045,120]
[341252907,1730726950217,-150.0,0.00045002,120]
[341252908,1730726950239,-5407.32,0.00045109,30]
[341252909,1730726950262,-5407.32,0.00045109,30]
[341252910,1730726950286,-2242.25,0.00045183,120]
[341252911,1730726950309,-5407.32,0.00045383,30]
[341252912,1730726950331,-5407.32,0.00045383,30]
[341252913,1730726950355,-690.0,0.000454,35]
[341252914,1730726950379,-150.0,0.000454,120]
[341252915,1730726950404,-2000.0,0.00045456,45]
[341252916,1730726950428,-150.505,0.00045527,120]
[341252917,1730726950451,-1812.65419381,0.000457,120]
[341252918,1730726950474,-500.0,0.00045746,120]
[341252919,1730726950498,-2242.25,0.00045868,120]
[341252920,1730726950521,-690.0,0.000459,36]
[341252921,1730726950544,-473.00846512,0.00046,120]
[341252922,1730726950567,-150.0,0.00046,120]
[341252923,1730726950590,-150.0,0.00046,120]
[341252924,1730726950613,-900.0,0.00046,47]
[341252925,1730726950635,-20000.0,0.00046,120]
[341252926,1730726950661,-150.0,0.00046,120]
[341252927,1730726950685,-150.0,0.00046,96]
[341252928,1730726950710,-3180.47784605,0.00046,120]
[341252929,1730726950735,-220.0,0.00046,120]
[341252930,1730726950760,-4142.59758264,0.00046,120]
[341252931,1730726950784,-15000.0,0.00046,120]
[341252932,1730726950808,-690.0,0.000464,36]
[341252933,1730726950831,-940.0,0.00046447,30]
[341252934,1730726950854,-801.88996818,0.00046447,30]
[341252935,1730726950878,-18400.0,0.000465,120]
[341252936,1730726950901,-893.09938672,0.000465,120]
[341252937,1730726950926,-2242.25,0.00046553,120]
[341252938,1730726950951,-3019.17245385,0.00046575,120]
[341252939,1730726950976,-250.0,0.000466,30]
[341252940,1730726951000,-101789.16276353,0.000467,120]
[341252941,1730726951024,-4276.0,0.000467,117]
[341252942,1730726951048,-690.0,0.000469,37]
[341252943,1730726951073,-381.63945781,0.00047,30]
[341252944,1730726951097,-2951.36944735,0.00047,30]
[341252945,1730726951122,-150.0,0.00047,120]
[341252946,1730726951147,-64909.49877728,0.00047,30]
[341252947,1730726951173,-14485.0349866,0.00047,30]
[341252948,1730726951199,-186000.75460935,0.00047,90]
[341252949,1730726951223,-900.0,0.00047,48]
[341252950,1730726951248,-150.0,0.00047,120]
[341252951,1730726951273,-58969.23421546,0.00047,120]
[341252952,1730726951297,-211.0136864,0.00047,120]
[341252953,1730726951322,-512.0532462,0.00047,120]
[341252954,1730726951347,-15000.0,0.00047,120]
[341252955,1730726951373,-201.1,0.00047,30]
[341252956,1730726951397,-58121.67162871,0.00047,120]
[341252957,1730726951421,-150.0,0.000472,120]
[341252958,1730726951447,-2242.25,0.00047238,120]
[341252959,1730726951470,-500.0,0.00047258,120]
[341252960,1730726951494,-154.7951706,0.00047397,120]
[341252961,1730726951520,-690.0,0.000474,37]
[341252962,1730726951544,-15000.0,0.000475,120]
[341252963,1730726951569,-49000.0,0.000475,31]
[341252964,1730726951594,-150.0,0.000475,120]
[341252965,1730726951617,-83277.09816359,0.000475,120]
[341252966,1730726951641,-15000.0,0.0004775,120]
[341252967,1730726951668,-9734.2,0.0004775,120]
[341252968,1730726951692,-15380.03124148,0.000478,120]
[341252969,1730726951716,-25860.661257,0.000479,120]
[341252970,1730726951741,-690.0,0.000479,38]
[341252971,1730726951767,-2242.25,0.00047923,120]
[341252972,1730726951791,-15000.0,0.00048,120]
[341252973,1730726951815,-400.0,0.00048,120]
[341252974,1730726951839,-20000.0,0.00048,120]
[341252975,1730726951864,-166.0,0.00048,120]
[341252976,1730726951888,-162.0,0.00048,120]
[341252977,1730726951914,-150.0,0.00048,120]
[341252978,1730726951946,-33258.94867555,0.00048,120]
[341252979,1730726951970,-50000.0,0.00048,31]
[341252980,1730726952134,-15000.0,0.00048,120]
[341252981,1730726952160,-900.0,0.00048,49]
[341252982,1730726952185,-150.0,0.00048,120]
[341252983,1730726952213,-25163.0,0.00048,30]
[341252984,1730726952237,-20071.53503499,0.00048,120]
[341252985,1730726952260,-151.0,0.00048,120]
[341252986,1730726952284,-3629.70235407,0.00048,120]
[341252987,1730726952307,-10910.77529088,0.00048,90]
[341252988,1730726952330,-3200.0,0.00048,90]
[341252989,1730726952354,-4142.59758264,0.00048,120]
[341252990,1730726952377,-541.99,0.00048,60]
[341252991,1730726952400,-6535.73419914,0.00048,30]
[341252992,1730726952426,-16327.59255393,0.00048,60]
[341252993,1730726952449,-690.0,0.000484,38]
[341252994,1730726952472,-2500.0,0.00048493,120]
[341252995,1730726952494,-15000.0,0.000485,120]
[341252996,1730726952518,-50000.0,0.000485,32]
[341252997,1730726952544,-256.0,0.000486,120]
[341252998,1730726952569,-252.85,0.000486,120]
[341252999,1730726952591,-250.0,0.000486,30]
[341253000,1730726952616,-2242.25,0.00048607,120]
[341253001,1730726952641,-119986.28855712,0.000487,120]
[341253002,1730726952665,-15000.0,0.0004875,120]
[341253004,1730726952689,-2500.0,0.00048767,120]
[341253005,1730726952716,-500.0,0.0004877,120]
[341253006,1730726952740,-8819.67359293,0.00048889,120]
[341253007,1730726952763,-276.07268003,0.00048898,120]
[341253008,1730726952788,-5697.5975586,0.000489,120]
[341253009,1730726952813,-5697.5975586,0.000489,120]
[341253010,1730726952837,-5697.5975586,0.000489,120]
[341253011,1730726952861,-5697.5975586,0.000489,120]
[341253012,1730726952884,-5697.5975586,0.000489,120]
[341253013,1730726952909,-5697.5975586,0.000489,120]
[341253014,1730726952934,-5697.5975586,0.000489,120]
[341253015,1730726952958,-5697.5975586,0.000489,120]
[341253016,1730726952984,-5697.5975586,0.000489,120]
[341253017,1730726953008,-5697.5975586,0.000489,120]
[341253018,1730726953032,-23199.1297608,0.000489,30]
[341253019,1730726953056,-38832.54386329,0.000489,120]
[341253020,1730726953081,-341.15772,0.000489,120]
[341253021,1730726953104,-342.67877686,0.000489,120]
[341253022,1730726953132,-109889.87573406,0.000489,120]
[341253023,1730726953159,-690.0,0.000489,39]
[341253024,1730726953183,-2000.0,0.00048984,60]
[341253025,1730726953213,-15000.0,0.00049,120]
[341253026,1730726953237,-30000.0,0.00049,120]
[341253027,1730726953264,-153.51068442,0.00049,120]
[341253028,1730726953287,-3000.0,0.00049,120]
[341253029,1730726953312,-150.0,0.00049,120]
[341253030,1730726953337,-50000.0,0.00049,33]
[341253031,1730726953362,-24583.0,0.00049,120]
[341253032,1730726953386,-1800.0,0.00049,80]
[341253033,1730726953411,-900.0,0.00049,50]
[341253034,1730726953436,-150.0,0.00049,120]
[341253035,1730726953461,-2086.02706074,0.00049,30]
[341253036,1730726953484,-20000.0,0.00049,120]
[341253037,1730726953508,-20939.37330657,0.00049,120]
[341253038,1730726953531,-153638.49306287,0.00049,120]
[341253039,1730726953558,-125375.06490648,0.00049,120]
[341253040,1730726953581,-857.9810661,0.00049,120]
[341253041,1730726953605,-16783.93966713,0.00049,30]
[341253042,1730726953628,-20178.72772121,0.00049,120]
[341253043,1730726953652,-546.52550717,0.00049,120]
[341253044,1730726953678,-2500.0,0.00049041,120]
[341253045,1730726953702,-1865.77312,0.00049088,30]
[341253046,1730726953726,-199.0406,0.000491,120]
[341253047,1730726953751,-50156.09431922,0.000492,50]
[341253048,1730726953776,-500.0,0.00049287,120]
[341253049,1730726953802,-500.0,0.00049287,120]
[341253050,1730726953825,-500.0,0.00049287,120]
[341253051,1730726953849,-555.61064906,0.00049287,120]
[341253052,1730726953872,-1865.77312,0.00049288,30]
[341253053,1730726953896,-2242.25,0.00049292,120]
[341253054,1730726953920,-745.65413327,0.00049315,120]
[341253055,1730726953944,-2500.0,0.00049315,120]
[341253056,1730726953968,-2000.0,0.00049315,120]
[341253057,1730726953991,-2000.0,0.00049315,120]
[341253058,1730726954014,-2000.0,0.00049315,120]
[341253059,1730726954038,-2000.0,0.00049315,120]
[341253060,1730726954063,-2000.0,0.00049315,120]
[341253061,1730726954087,-2000.0,0.00049315,120]
[341253062,1730726954111,-2000.0,0.00049315,120]
[341253063,1730726954135,-2000.0,0.00049315,120]
[341253064,1730726954159,-2000.0,0.00049315,120]
[341253065,1730726954183,-2000.0,0.00049315,120]
[341253066,1730726954207,-2000.0,0.00049315,120]
[341253067,1730726954230,-2000.0,0.00049315,120]
[341253068,1730726954253,-1393.29,0.00049315,120]
[341253069,1730726954277,-500.0,0.00049315,120]
[341253070,1730726954300,-500.0,0.00049315,120]
[341253071,1730726954323,-500.0,0.00049315,120]
[341253072,1730726954347,-500.0,0.00049315,120]
[341253073,1730726954369,-500.0,0.00049315,120]
[341253074,1730726954392,-500.0,0.00049315,120]
[341253075,1730726954415,-500.0,0.00049315,120]
[341253076,1730726954438,-500.0,0.00049315,120]
[341253077,1730726954461,-500.0,0.00049315,120]
[341253078,1730726954485,-500.0,0.00049315,120]
[341253079,1730726954507,-500.0,0.00049315,120]
[341253080,1730726954530,-500.0,0.00049315,120]
[341253081,1730726954553,-500.0,0.00049315,120]
[341253082,1730726954575,-500.0,0.00049315,120]
[341253083,1730726954598,-246.74924306,0.00049315,120]
[341253084,1730726954620,-1500.0,0.00049315,120]
[341253085,1730726954775,-157.51,0.00049315,120]
[341253086,1730726954800,-1421.13,0.00049315,120]
[341253087,1730726954945,150.0,0.00040125,60]
[341253088,1730726954978,200.0,0.00040125,60]
[341253089,1730726955009,150.0,0.00041221,60]
[341253090,1730726955039,200.0,0.00041221,60]
[341253091,1730726955075,200.0,0.00042317,60]
[341253092,1730726955110,200.0,0.00043128,120]
[341253093,1730726955142,150.0,0.00042317,60]
[341253094,1730726955175,150.0,0.00043128,120]
[341253095,1730726955220,200.0,0.0004313,30]
[341253096,1730726955253,200.0,0.00043413,60]
[341253097,1730726955287,200.0,0.000435,32]
[341253098,1730726955327,200.0,0.000436,120]
[341253099,1730726955444,200.0,0.00043813,120]
[341253100,1730726955479,200.0,0.000439,30]
[341253101,1730726955524,200.0,0.00044,30]
[341253102,1730726955561,200.0,0.00044016,30]
[341253103,1730726955641,200.0,0.00044018,30]
[341253104,1730726955675,200.0,0.00044072,30]
[341253105,1730726955709,200.0,0.000441,120]
[341253106,1730726955781,200.0,0.00044127,30]
[341253107,1730726955819,200.0,0.00044181,30]
[341253108,1730726955852,200.0,0.000442,31]
[341253109,1730726955879,200.0,0.00040125,60]
[341253110,1730726955910,200.0,0.0004423,30]
[341253111,1730726955965,200.0,0.00044235,30]
[341253112,1730726956427,200.0,0.0004429,30]
[341253113,1730726956485,1500.0,0.00049315,120]
[341253114,1730726956575,200.0,0.00041221,60]
[341253115,1730726956853,200.0,0.000444,30]
[341253116,1730726957317,200.0,0.00042317,60]
[341253117,1730726957745,200.0,0.00043128,120]
[341253118,1730726958310,200.0,0.000445,120]
[341253119,1730726958386,200.0,0.0004313,30]
[341253120,1730726958800,200.0,0.00043413,60]
[341253121,1730726959528,200.0,0.00044563,30]
[341253122,1730726959557,195.49826165,0.00049241,30]
[341253123,1730726959957,200.0,0.000446,30]
[341253124,1730726960015,200.0,0.000436,120]
[341253125,1730726960198,2000.0,0.00048,30]
[341253126,1730726960382,200.0,0.0004465,30]
[341253127,1730726960530,200.0,0.00043813,120]
[341253128,1730726960859,200.0,0.00044683,30]
[341253129,1730726960973,200.0,0.000439,30]
[341253131,1730726961280,200.0,0.000448,120]
[341253132,1730726961383,200.0,0.00044,30]
[341253133,1730726961721,200.0,0.00044832,120]
[341253134,1730726961792,200.0,0.00044016,30]
[341253135,1730726962144,200.0,0.00044836,30]
[341253136,1730726962219,200.0,0.00044018,30]
[341253137,1730726962661,200.0,0.00044072,30]
[341253138,1730726962875,200.0,0.000449,34]
[341253139,1730726962906,216.8,0.000438,60]
[341253140,1730726962937,160.89,0.000433,30]
[341253141,1730726963202,200.0,0.000441,120]
[341253142,1730726963298,-191.0,0.00043788,30]
[341253143,1730726963426,216.8,0.000444,60]
[341253144,1730726963454,160.89,0.000448,30]
[341253145,1730726963484,200.0,0.00045,120]
[341253146,1730726963612,216.8,0.000451,60]
[341253147,1730726963640,200.0,0.00044127,30]
[341253148,1730726963675,160.89,0.000465,30]
[341253149,1730726963957,160.89,0.000484,30]
[341253150,1730726964070,200.0,0.00045002,120]
[341253151,1730726964098,200.0,0.00044181,30]
[341253152,1730726964591,200.0,0.00045109,30]
[341253153,1730726964631,200.0,0.000442,31]
[341253154,1730726964659,216.8,0.000458,60]
[341253155,1730726964841,216.8,0.000466,60]
[341253156,1730726964885,200.0,0.00045183,120]
[341253157,1730726965177,200.0,0.0004423,30]
[341253158,1730726965206,216.8,0.000473,60]
[341253159,1730726965311,200.0,0.00045383,30]
[341253160,1730726965520,200.0,0.00044235,30]
[341253161,1730726965550,216.8,0.00048,60]
[341253162,1730726965747,200.0,0.000454,35]
[341253163,1730726966183,200.0,0.00045456,45]
[341253164,1730726966215,200.0,0.00049315,120]
[341253165,1730726966637,200.0,0.00045527,120]
[341253166,1730726967071,200.0,0.000457,120]
[341253167,1730726967489,200.0,0.00045746,120]
[341253168,1730726967998,200.0,0.00045868,120]
[341253169,1730726968437,200.0,0.000459,36]
[341253170,1730726969042,200.0,0.00046,120]
[341253171,1730726969475,200.0,0.000464,36]
[341253172,1730726970618,200.0,0.00049315,120]
[341253173,1730726971090,1000.0,0.00049,30]
[341253174,1730726991538,-258.0,0.00035606,10]
[341253175,1730726991608,-657.0,0.00041096,13]
[341253176,1730726991635,-361.0731386,0.00042606,10]
[341253177,1730726991661,-275.07874136,0.00042788,15]
[341253178,1730726991685,-500.0,0.00042867,10]
[341253179,1730726991711,-90942.33095881,0.00043062,14]
[341253180,1730726991734,-14550.77295341,0.00043111,14]
[341253181,1730726991759,-36376.93238352,0.00043126,14]
[341253182,1730726991783,-396.83330525,0.00043132,14]
[341253183,1730726991808,-15501.30098619,0.00043132,14]
[341253184,1730726991831,-200.0,0.00043136,14]
[341253185,1730726991855,-36376.93238352,0.00043136,14]
[341253186,1730726991879,-328.60719098,0.00043138,14]
[341253187,1730726991903,-992.08326312,0.00043143,14]
[341253188,1730726991927,-12836.21839752,0.00043143,14]
[341253189,1730726991954,-2480.20815779,0.00043143,14]
[341253190,1730726991978,-821.51797744,0.00043144,14]
[341253191,1730726992001,-38753.25246547,0.00043147,14]
[341253192,1730726992025,-1340.78578263,0.00043148,14]
[341253193,1730726992048,-2053.7949436,0.00043151,14]
[341253194,1730726992072,-328.60719098,0.00043154,14]
[341253195,1730726992095,-15501.30098619,0.00043154,14]
[341253196,1730726992118,-1340.78578263,0.00043159,14]
[341253197,1730726992141,-200.0,0.00043164,14]
[341253198,1730726992164,-201.1511278,0.00043166,14]
[341253199,1730726992187,-502.8778195,0.00043167,14]
[341253200,1730726992210,-1257.194549,0.00043169,14]
[341253201,1730726992238,-36376.93238352,0.0004317,14]
[341253202,1730726992262,-15501.30098619,0.00043171,14]
[341253203,1730726992285,-3351.96445656,0.00043172,14]
[341253204,1730726992309,-38753.25246547,0.00043177,14]
[341253205,1730726992332,-3351.96445656,0.00043179,14]
[341253206,1730726992355,-14550.77295341,0.00043184,14]
[341253207,1730726992378,-200.0,0.00043186,14]
[341253208,1730726992402,-12836.21839752,0.00043187,14]
[341253209,1730726992424,-502.8778195,0.00043189,14]
[341253210,1730726992603,-201.1511278,0.00043193,14]
[341253211,1730726992628,-1340.78578263,0.00043195,14]
[341253212,1730726992653,-1257.194549,0.00043195,14]
[341253213,1730726992677,-90942.33095881,0.000432,14]
[341253214,1730726992701,-2480.20815779,0.00043201,14]
[341253215,1730726992725,-38753.25246547,0.00043201,14]
[341253216,1730726992748,-2053.7949436,0.00043205,14]
[341253217,1730726992772,-214.52572522,0.00043211,14]
[341253218,1730726992795,-536.31431305,0.00043212,14]
[341253219,1730726992819,-821.51797744,0.00043213,14]
[341253220,1730726992843,-1257.194549,0.0004322,14]
[341253221,1730726992867,-90942.33095881,0.00043224,14]
[341253222,1730726992890,-214.52572522,0.0004323,14]
[341253223,1730726992914,-200.0,0.0004323,14]
[341253224,1730726992940,-200.0,0.00043253,14]
[341253225,1730726992964,-200.0,0.00043255,14]
[341253226,1730726992988,-90942.33095881,0.00043256,14]
[341253227,1730726993014,-200.0,0.00043262,14]
[341253228,1730726993040,-328.60719098,0.00043266,14]
[341253229,1730726993065,-14550.77295341,0.00043267,14]
[341253230,1730726993091,-6200.52039447,0.00043273,14]
[341253231,1730726993116,-200.0,0.00043273,14]
[341253232,1730726993141,-14550.77295341,0.00043284,14]
[341253233,1730726993166,-6200.52039447,0.00043287,14]
[341253234,1730726993191,-201.1511278,0.00043287,14]
[341253235,1730726993216,-992.08326312,0.00043289,14]
[341253236,1730726993243,-5134.48735901,0.0004329,14]
[341253237,1730726993266,-821.51797744,0.00043293,14]
[341253238,1730726993291,-36376.93238352,0.00043293,14]
[341253239,1730726993316,-214.52572522,0.00043294,14]
[341253240,1730726993339,-200.0,0.000433,14]
[341253241,1730726993365,-31193.19,0.000435,11]
[341253242,1730726993391,-15596.58,0.000436,11]
[341253243,1730726993416,-159.396239,0.00043788,14]
[341253244,1730726993440,-151.0,0.00043788,14]
[341253245,1730726993464,-151.0,0.00043788,14]
[341253246,1730726993490,-151.0,0.00043788,14]
[341253247,1730726993514,-151.0,0.00043788,14]
[341253248,1730726993538,-151.0,0.00043788,14]
[341253249,1730726993566,-226.287246,0.00043788,14]
[341253250,1730726993601,-151.0,0.0004384,14]
[341253251,1730726993627,-151.0,0.0004384,14]
[341253252,1730726993654,-1335.570632,0.0004384,19]
[341253253,1730726993678,-1000.0,0.0004386,20]
[341253254,1730726993702,-1134.575246,0.0004388,20]
[341253255,1730726993727,-1000.0,0.0004388,20]
[341253256,1730726993752,-76700.94456874,0.000439,12]
[341253257,1730726993777,-1000.0,0.000439,20]
[341253258,1730726993800,-1000.0,0.000439,20]
[341253259,1730726993824,-700.0,0.00043943,16]
[341253260,1730726993850,-700.0,0.00043943,16]
[341253261,1730726993873,-700.0,0.00043943,16]
[341253262,1730726993898,-700.0,0.00043943,16]
[341253263,1730726993923,-706.60128279,0.00043943,16]
[341253264,1730726993946,-700.0,0.00043943,16]
[341253265,1730726993970,-700.0,0.00043943,16]
[341253266,1730726993994,-700.0,0.00043943,16]
[341253267,1730726994018,-700.0,0.00043943,16]
[341253268,1730726994042,-700.0,0.00043943,16]
[341253269,1730726994067,-151.0,0.00043969,14]
[341253270,1730726994090,-177.834,0.00044216,14]
[341253271,1730726994114,-19107.66332696,0.0004438,15]
[341253272,1730726994138,-151.0,0.000448,14]
[341253273,1730726994161,-152.0,0.0004482,10]
[341253274,1730726994185,-7207.38327982,0.00045,14]
[341253275,1730726994209,-5204.0,0.00045,25]
[341253276,1730726994235,-400.0,0.00045,10]
[341253277,1730726994260,-152.0,0.00046197,11]
[341253278,1730726996562,215.0,0.00035606,10]
[341253279,1730727019008,-156.75,0.00015342,2]
[341253280,1730727019035,-300.0,0.00015999,2]
[341253281,1730727019063,-85434.26936095,0.00016,2]
[341253282,1730727019089,-150.0,0.00016784,2]
[341253283,1730727019115,-420.0,0.00017492,2]
[341253284,1730727019141,-500.0,0.00017999,2]
[341253285,1730727019167,-341.94333382,0.00017999,2]
[341253286,1730727019193,-13586.34269337,0.00018,2]
[341253287,1730727019219,-1127.57802366,0.00018,2]
[341253288,1730727019249,-743.41744628,0.00018,2]
[341253289,1730727019275,-921.82960735,0.0001892,2]
[341253290,1730727019300,-587.0,0.00019125,2]
[341253291,1730727019328,-823.0,0.0002091,2]
[341253292,1730727019353,-157.51,0.00021918,2]
[341253293,1730727019378,-1152.0,0.00022862,2]
[341253294,1730727019403,-1613.0,0.00024995,2]
[341253295,1730727019427,-552.0,0.00027328,2]
[341253296,1730727019452,-2906.0,0.00029314,2]
[341253297,1730727019482,-11231.7497,0.00029529,2]
[341253298,1730727019506,-245000.0,0.00029629,2]
[341253299,1730727019530,-1731.25547607,0.00030489,2]
[341253300,1730727019559,-380.0,0.000316,2]
[341253301,1730727019584,-334.39,0.000319,2]
[341253302,1730727019609,-1876.363,0.00032314,2]
[341253303,1730727019634,-1000.0,0.00033735,2]
[341253304,1730727019659,-1118.12,0.00033844,2]
[341253305,1730727019683,-151.76342527,0.00035274,2]
[341253306,1730727019707,-1735.79689805,0.00035284,2]
[341253307,1730727019733,-179.17,0.00035606,10]
[341253308,1730727019757,-311.75089351,0.00035616,2]
[341253309,1730727019780,-537.06955558,0.00035616,2]
[341253310,1730727019805,-500.0,0.00035616,2]
[341253311,1730727019828,-515.74846955,0.00035616,2]
[341253312,1730727019852,-500.0,0.00035616,2]
[341253313,1730727019877,-521.97354372,0.00035616,2]
[341253314,1730727019901,-500.0,0.00035616,2]
[341253315,1730727019925,-500.0,0.00035616,2]
[341253316,1730727019952,-500.0,0.00035616,2]
[341253317,1730727019978,-516.50379956,0.00035616,2]
[341253318,1730727020001,-500.0,0.00035616,2]
[341253319,1730727020025,-500.0,0.00035616,2]
[341253320,1730727020048,-500.0,0.00035616,2]
[341253321,1730727020073,-500.0,0.00035616,2]
[341253322,1730727020097,-638.26682321,0.00035616,2]
[341253323,1730727020121,-500.0,0.00035616,2]
[341253324,1730727020144,-500.0,0.00035616,2]
[341253325,1730727020168,-622.02,0.00035616,2]
[341253326,1730727020192,-500.0,0.00035616,2]
[341253327,1730727020215,-500.0,0.00035616,2]
[341253328,1730727020245,-500.0,0.00035616,2]
[341253329,1730727020268,-500.0,0.00035616,2]
[341253330,1730727020292,-500.0,0.00035616,2]
[341253331,1730727020317,-545.48,0.00035616,2]
[341253332,1730727020343,-529.25776636,0.00035616,2]
[341253333,1730727020366,-539.47124171,0.00035616,2]
[341253334,1730727020389,-500.0,0.00035616,2]
[341253335,1730727020413,-500.0,0.00035616,2]